Cogmind - Beta 15 @@@ ROGUE MODE // 2025.08.17 @ 19:27:50 Player: C0-2MO Result: Core destroyed Performance ------------- Evolutions (4) 2000 Regions Visited (18) 3600 Robots Destroyed (87) 435 Value Destroyed (2594) 2594 Prototype IDs (45) 900 Alien Tech Used (0) 0 Bonus (5968) 5968 TOTAL SCORE: 15497 Bonus ------- High Alert Combat Kills 44 Follower Combat Kills 3624 Met Imprinter 300 Was Imprinted 300 Met Zhirov 300 Built Enhanced Grunts 300 A7 Reached Mainframe 300 Met R17 at Cetus 500 Read Decrypted Archives 300 Cogmind --------- Core Integrity 0/850 Matter 300/300 Energy 100/100 System Corruption 4% Temperature Cool (0) Movement Walking (190) Ox1 Location -6/Archives Parts ------- > --- POWER (1) -------- (None) > --- PROPULSION (6) --- Myomer Leg Improved Hover Unit > --- UTILITY (6) ------ Improved Cooling System Medium Storage Unit Structural Scanner Advanced Signal Interpreter Advanced Melee Analysis Suite Centrium Medium Armor Plating > --- WEAPON (2) ------- Ripper Power Sword > --- INVENTORY (10) --- Light Nuclear Core Myomer Leg Improved Cooling System Zionite Weapon Casing Authchip [R/Combat] Authchip [Processor] Hacking Drone Bay (1/1) Beamcaster Zionite Laser-S Advanced KE Penetrator Peak State ------------ > --- POWER ------------ Meta Core > --- PROPULSION ------- Cooled Aerolev Unit Gravmag Array Improved VTOL Module Improved VTOL Module Improved VTOL Module > --- UTILITY ---------- Structural Scanner Advanced Sensor Array Advanced Signal Interpreter Hacking Suite Makeshift Hacking Suite Authchip [Propulsion] Hacking Drone Bay > --- WEAPON ----------- Dirty Datajack Axe > --- INVENTORY -------- Large Storage Unit Authchip [Propulsion] Authchip [Propulsion] Authchip [Processor] [Rating: 82] Favorites ----------- Power Meta Core Engine Light Angular Momentum Engine Power Core Meta Core Reactor Zionite Light DM Reactor Propulsion Improved VTOL Module Treads Light Treads Leg Myomer Leg Wheel Compact Wheel Hover Unit Improved Hover Unit Flight Unit Improved VTOL Module Utility Structural Scanner Device Structural Scanner Storage Medium Storage Unit Processor Advanced Signal Interpreter Hackware Hacking Suite Protection Improved Utility Shielding Weapon Scythe Energy Gun Riot Gun Energy Cannon Phase Cannon Ballistic Gun Subdweller Machine Gun Launcher Grenade Launcher Special Weapon Remote Datajack Slashing Weapon Scythe Special Melee Weapon Dirty Datajack Build | -11 -10 -10 -10 -8 -8 -7 -7 -7 -7 -7 -7 -6 -6 -6 -6 -6 -6 -6 ------- Run | Yrd Mat Min Sub Mat Sto Fac Was Fac Low Low Zio Pro Fac Was Fac Ext Cet Arc Slots Evolved 8 | . . . . 4 . 2 . . . . . . 2 . . . . . Power . | . . . . . . . . . . . . . . . . . . . Propulsion 4 | . . . . 2 . 1 . . . . . . 1 . . . . . Utility 4 | . . . . 2 . 1 . . . . . . 1 . . . . . Weapon . | . . . . . . . . . . . . . . . . . . . Parts Attached 135 | 7 6 2 14 5 12 11 . 5 . . 1 3 34 . 13 19 3 . Power 8 | 1 . 1 1 . . . . . . . . . 4 . . 1 . . Engine 5 | 1 . 1 . . . . . . . . . . 2 . . 1 . . Core 2 | . . . 1 . . . . . . . . . 1 . . . . . Reactor 1 | . . . . . . . . . . . . . 1 . . . . . Propulsion 45 | 2 2 1 3 1 6 4 . 1 . . . . 12 . 3 10 . . Treads 2 | 1 1 . . . . . . . . . . . . . . . . . Leg 3 | . . . . . . . . . . . . . . . . 3 . . Wheel 11 | 1 1 1 3 1 . . . . . . . . . . . 4 . . Hover 6 | . . . . . . . . . . . . . 3 . . 3 . . Flight 23 | . . . . . 6 4 . 1 . . . . 9 . 3 . . . Utility 51 | 2 2 . 3 2 2 6 . 4 . . 1 1 14 . 8 5 1 . Device 20 | 1 1 . 1 1 1 1 . 2 . . 1 . 2 . 7 2 . . Storage 6 | 1 . . 1 . . 1 . . . . . . 2 . . 1 . . Processor 7 | . 1 . . . 1 . . . . . . . 3 . 1 1 . . Hackware 9 | . . . . . . 2 . 2 . . . 1 4 . . . . . Protection 9 | . . . 1 1 . 2 . . . . . . 3 . . 1 1 . Artifact . | . . . . . . . . . . . . . . . . . . . Weapon 31 | 2 2 . 7 2 4 1 . . . . . 2 4 . 2 3 2 . Energy Gun 6 | . . . 2 . 2 . . . . . . 1 1 . . . . . Energy Cannon 4 | . . . . 1 1 . . . . . . . . . 2 . . . Ballistic Gun 10 | 2 . . 4 . . . . . . . . . 2 . . 1 1 . Ballistic Cannon . | . . . . . . . . . . . . . . . . . . . Launcher 3 | . 1 . 1 . 1 . . . . . . . . . . . . . Special Weapon 2 | . 1 . . . . . . . . . . . . . . 1 . . Impact Weapon . | . . . . . . . . . . . . . . . . . . . Slashing Weapon 5 | . . . . 1 . 1 . . . . . . 1 . . 1 1 . Piercing Weapon . | . . . . . . . . . . . . . . . . . . . Special Melee Weapon 1 | . . . . . . . . . . . . 1 . . . . . . Unidentified Prototypes 19 | . . . 1 . 5 . . . . . 1 . 8 . 2 . 2 . Parts Lost 52 | . . . 7 1 6 2 . . . 1 . 4 9 . 14 2 2 4 Power 4 | . . . 1 . . . . . . . . . 1 . 1 . . 1 Propulsion 29 | . . . 3 1 2 1 . . . 1 . 3 4 . 8 2 1 3 Utility 13 | . . . 1 . 2 1 . . . . . 1 3 . 4 . 1 . Weapon 6 | . . . 2 . 2 . . . . . . . 1 . 1 . . . Highest Loss Streak 11 | . . . 4 1 6 2 . . . 1 . 3 4 . 11 1 1 4 To Critical Strikes 2 | . . . 1 . . . . . . . . . . . . . 1 . Average Backups 8 | 2 5 4 5 9 7 7 10 8 8 8 10 8 8 14 12 7 10 10 Power . | . . . 1 2 1 . . . . . . . . 2 . . 1 1 Propulsion 1 | 1 1 1 . 3 2 1 1 . . . . . 1 3 2 . 1 1 Utility 4 | . 1 1 . 1 . 3 7 6 6 6 6 6 6 9 7 4 5 5 Weapon 1 | . 1 2 2 3 2 . 1 1 1 1 1 . . . . 1 2 3 Tool/Special . | . . . . . . . . . . . . . . . . . . . Unused Backups 24 | . 1 . . . 1 2 . . . . 2 2 . . 9 . . 7 Power 3 | . 1 . . . . 1 . . . . . . . . . . . 1 Propulsion 2 | . . . . . . . . . . . . . . . 1 . . 1 Utility 13 | . . . . . 1 1 . . . . 1 1 . . 6 . . 3 Weapon 4 | . . . . . . . . . . . . . . . 2 . . 2 Tool/Special 2 | . . . . . . . . . . . 1 1 . . . . . . Average Slot Usage (%) 85 | . 100 100 89 66 56 81 93 92 93 91 81 77 78 93 81 91 97 93 Engine 3 | . 14 14 7 . . . . . . . . . 1 . . 5 6 6 Core 3 | . . . 1 7 7 6 6 6 6 6 6 6 3 6 4 . . . Treads 1 | . 14 10 5 . . . . . . . . . . . . . . . Leg 1 | . . . . . . . . . . . . . . . . 5 20 20 Wheel 5 | . 14 17 20 17 5 . . . . . . . . . . 12 . . Hover 3 | . . . . . . . . . . . . . 3 . . 17 17 13 Flight 19 | . . . . . 14 36 37 36 37 36 31 26 29 40 34 . . . Device 10 | . 14 14 8 6 6 8 12 12 12 12 12 9 9 6 10 14 13 13 Storage 5 | . 11 . 6 7 3 4 6 6 6 6 6 4 3 6 4 5 6 6 Processor 7 | . 2 14 7 . 3 6 6 6 6 6 6 6 5 6 7 13 13 13 Hackware 4 | . . . . . . 6 6 6 6 6 6 7 10 13 8 . . . Protection 3 | . . . 4 13 6 4 6 5 6 6 6 6 . 6 2 3 4 6 Energy Gun 1 | . . . 7 . 1 . . . . . . 1 . . . . . . Ballistic Gun 4 | . 26 21 18 6 2 . . . . . . . . . . . 1 . Slashing Weapon 4 | . . . . 1 3 6 12 12 12 10 6 5 4 6 4 1 7 13 Peak Build Rating 82 | 7 10 11 27 34 43 59 60 66 62 66 61 62 82 59 67 75 79 73 Average Rating 48 | 5 7 10 15 32 31 51 59 61 62 61 56 54 66 59 52 52 74 73 On Entrance 42 | . 7 10 11 27 31 43 59 60 62 62 56 56 46 59 59 22 73 73 Naked Turns . | . . . . . . . . . . . . . . . . . . . Heaviest Build 49 | 14 16 11 41 49 49 26 26 26 26 28 24 27 38 30 31 35 38 35 Greatest Support 75 | 16 16 20 40 56 36 27 26 28 33 28 27 27 43 34 35 75 75 75 Greatest Overweight (x) 2 | . 1 1 1 1 2 . . 1 . . . 1 1 . 1 1 . . Average Overweight (x) . | . . . . . . . . . . . . . . . . . . . Largest Inventory Capacity 15 | 8 8 5 15 15 15 10 10 10 10 10 10 10 15 15 15 10 10 10 Average Capacity 10 | 7 7 5 10 15 9 8 10 10 10 10 10 8 10 15 12 9 10 10 Most Carried 15 | 5 8 5 7 11 14 10 10 10 8 10 10 10 15 14 15 10 10 10 Average Carried 8 | 3 5 4 5 9 7 7 9 8 8 8 9 8 8 14 12 7 10 10 Final Capacity 15 | 8 5 5 15 15 5 10 10 10 10 10 10 5 15 15 5 10 10 10 Final Carried 14 | 5 4 5 7 11 4 10 10 8 8 10 10 5 14 14 5 10 10 10 Class Distribution -------------------- 19% | Scout 18% | Scavenger-Mutant 17% | Mutant 12% | Hacker-Sprinter 7% | Sprinter 7% | Hacker-Scout 5% | Messiah-Mutant 4% | Commander-Scout Dominant Class ---------------- Mutant | -10/Materials Scavenger-Mutant | -10/Mines Scavenger-Mutant | -10/Subcaves Mutant | -8/Materials Sprinter | -8/Storage Sprinter | -7/Factory Scout | -7/Waste Scout | -7/Factory Scout | -7/Lower Caves Scout | -7/Lower Caves Scout | -7/Zion Scout | -6/Proximity Caves Hacker-Scout | -6/Factory Hacker-Sprinter | -6/Waste Hacker-Sprinter | -6/Factory Messiah-Mutant | -6/Extension Scavenger-Mutant | -6/Cetus Scavenger-Gladiator | -6/Archives Resources | -11 -10 -10 -10 -8 -8 -7 -7 -7 -7 -7 -7 -6 -6 -6 -6 -6 -6 -6 ----------- Run | Yrd Mat Min Sub Mat Sto Fac Was Fac Low Low Zio Pro Fac Was Fac Ext Cet Arc Matter Collected 2969 | 290 59 183 332 46 78 326 . 160 . . 95 50 430 . 301 413 206 . Remotely . | . . . . . . . . . . . . . . . . . . . Salvage Created 2715 | 109 115 8 368 137 149 348 . 77 . 18 . 172 579 . 176 345 114 . Parts 183 | 9 13 7 18 20 11 18 . 6 . 3 . 7 32 . 17 16 6 . Haulers Intercepted 4 | . 1 . . . . 2 . . . . . . . . 1 . . . Recyclers Shooed 5 | 1 2 . . . . . . . . . . . 2 . . . . . Parts Field Recycled . | . . . . . . . . . . . . . . . . . . . Retrieved Matter . | . . . . . . . . . . . . . . . . . . . Parts Self-Destructed 18 | . . . 5 . . . . . . . . 13 . . . . . . Prevented 9 | . . . . . . . . . . . . 9 . . . . . . Kills | -11 -10 -10 -10 -8 -8 -7 -7 -7 -7 -7 -7 -6 -6 -6 -6 -6 -6 -6 ------- Run | Yrd Mat Min Sub Mat Sto Fac Was Fac Low Low Zio Pro Fac Was Fac Ext Cet Arc Combat Hostiles Destroyed 57 | . 3 3 10 5 2 5 . 1 . 3 . 6 13 . 1 4 1 . Melee 15 | . . . . . . 4 . 1 . . . 1 9 . . . . . Guns 17 | . . . 8 2 2 . . . . . . 2 2 . . . 1 . Cannons 4 | . . . . 1 . . . . . . . . . . 1 2 . . AOE 18 | . 3 3 1 2 . 1 . . . 3 . 3 2 . . . . . Classes Destroyed 15 | 2 3 . 1 2 1 2 . . . . . 1 2 . . 1 . . Worker 1 | . . . . . . . . . . . . . 1 . . . . . Builder 11 | . 3 . . 2 2 . . . . . . . . . 3 1 . . Tunneler 2 | 2 . . . . . . . . . . . . . . . . . . Hauler 4 | . 1 . . . . 2 . . . . . . . . 1 . . . Recycler 2 | 1 . . . . . . . . . . . . . . . 1 . . Operator 4 | . . . . 1 . 1 . . . . . . . . 1 1 . . Watcher 6 | . . . . . . 4 . 1 . . . . . . . . 1 . Swarmer 27 | . 3 3 . 3 . 4 . . . 3 . 4 6 . 1 . . . Grunt 8 | . . . . . . . . . . . . 2 6 . . . . . Brawler 1 | . . . . . 1 . . . . . . . . . . . . . Sentry 5 | . . . . 2 1 . . . . . . . . . . 2 . . Hunter 2 | . . . . . . . . . . . . . 1 . . 1 . . Programmer 2 | . . . . . . 1 . 1 . . . . . . . . . . Behemoth 1 | . . . . . . . . . . . . . . . . 1 . . Cetus Guard 1 | . . . . . . . . . . . . . . . . . 1 . Subdweller 10 | . . . 10 . . . . . . . . . . . . . . . Best Kill Streak 6 | 2 3 3 3 6 4 5 . 1 . 3 . 6 4 . 1 2 1 . Combat Bots Only 6 | . 3 3 3 4 2 4 . 1 . 3 . 6 4 . 1 2 1 . Max Kills in Single Turn 3 | 1 2 2 1 3 2 1 . 1 . 2 . 2 2 . 1 1 1 . Gunslinging . | . . . . . . . . . . . . . . . . . . . Exploded 2 | . 2 2 1 2 . 1 . . . 2 . 2 2 . . . . . Melee 1 | . . . . . . 1 . 1 . . . 1 1 . . . . . Uniques/NPCs Destroyed . | . . . . . . . . . . . . . . . . . . . Combat | -11 -10 -10 -10 -8 -8 -7 -7 -7 -7 -7 -7 -6 -6 -6 -6 -6 -6 -6 -------- Run | Yrd Mat Min Sub Mat Sto Fac Was Fac Low Low Zio Pro Fac Was Fac Ext Cet Arc Hostile Shots Fired 528 | . 17 8 62 40 70 60 . . 3 6 . 26 79 . 101 54 2 . Missed 221 | . 4 3 14 12 24 37 . . 2 2 . 8 32 . 61 21 1 . Hits 307 | . 13 5 48 28 46 23 . . 1 4 . 18 47 . 40 33 1 . Melee 8 | . . . . . 8 . . . . . . . . . . . . . Projectile 299 | . 13 5 48 28 38 23 . . 1 4 . 18 47 . 40 33 1 . Critical Strikes 16 | . . . 2 . 4 . . . . . . . 5 . 2 . 3 . Damage Taken 6288 | . 143 60 992 367 858 326 . 71 15 110 . 313 869 . 827 394 79 864 Core 1757 | . 17 12 200 75 334 122 . 18 15 31 . 63 339 . 398 45 . 88 Absorbed by Shields 28 | . . . . . . . . . . . . . . . 8 . 20 . Redirected to Shielding 67 | . . . . . . . . 18 . . . 31 . . 18 . . . Ignored by Resistances 63 | . . . 31 30 2 . . . . . . . . . . . . . Regen/Repaired (Parts) 83 | . . . . . . 11 . 29 . . . . 12 . 31 . . . Core Remaining (%) 49 | 100 . . 8 . 25 . . . . . . 64 . . . . . . Volleys Fired 195 | 5 29 6 38 12 11 2 . . . 4 . 10 14 . 1 54 9 . Largest 2 | 2 2 2 2 2 2 1 . . . 1 . 1 2 . 1 1 1 . Hottest 120 | 40 100 120 100 120 100 43 . . . 43 . 63 88 . 85 85 35 . Shots Fired 285 | 10 52 7 69 23 18 2 . . . 4 . 10 26 . 1 54 9 . Gun 196 | 10 46 1 68 8 18 . . . . . . 10 26 . . . 9 . Cannon 47 | . . . . 12 . . . . . . . . . . 1 34 . . Launcher 15 | . 2 3 1 3 . 2 . . . 4 . . . . . . . . Special 27 | . 4 3 . . . . . . . . . . . . . 20 . . Kinetic 153 | 10 46 1 62 11 . . . . . . . . 14 . . . 9 . Thermal 76 | . 4 3 . 12 . . . . . . . 10 12 . 1 34 . . Explosive 11 | . 2 3 . . . 2 . . . 4 . . . . . . . . Electromagnetic 25 | . . . 7 . 18 . . . . . . . . . . . . . Robot Hit Streak 22 | 6 7 . 12 5 9 2 . . . 1 . 5 4 . 4 22 5 . Robot Miss Streak 4 | 2 2 3 2 3 4 . . . . 2 . 4 3 . . 2 2 . Penetration Max 1 | . . . . . . . . . . . . . . . . . 1 . Secondary Targets 1 | . . . 1 . . . . . . . . . . . . . . . Max Gunslinging Chain 1 | . . . 1 . . . . . . . . . . . . . . . Shots Hit Robots 282 | 7 31 . 57 15 16 29 . 3 . 1 . 16 55 . 11 35 6 . Core Hits 130 | 4 12 4 19 11 9 12 . 2 . 4 . 8 28 . 2 12 3 . Critical Kills 3 | . . . 1 . . . . . . . . . 1 . . 1 . . Critical Parts Destroyed . | . . . . . . . . . . . . . . . . . . . Critical Strikes 8 | . . . 1 . . 2 . . . . . 1 3 . . 1 . . Burn 1 | . . . . . . . . . . . . 1 . . . . . . Meltdown 1 | . . . . . . . . . . . . . . . . 1 . . Destroy 2 | . . . 1 . . . . . . . . . 1 . . . . . Sever 4 | . . . . . . 2 . . . . . . 2 . . . . . Melee Attacks 221 | . . . . 3 9 64 . 17 . . 1 15 69 . 33 10 . . Impact . | . . . . . . . . . . . . . . . . . . . Slashing 201 | . . . . 3 9 64 . 17 . . 1 3 61 . 33 10 . . Piercing 20 | . . . . . . . . . . . . 12 8 . . . . . Sneak Attacks 18 | . . . . . . 2 . 1 . . . 2 4 . 6 3 . . Combat Hostiles 4 | . . . . . . . . . . . . 2 2 . . . . . Follow-up Attacks . | . . . . . . . . . . . . . . . . . . . Damage Inflicted 8255 | 70 446 129 1228 703 381 1137 . 177 . 343 . 244 1647 . 721 843 186 . Guns 2598 | 70 340 . 1110 149 243 . . . . . . 100 400 . . . 186 . Cannons 707 | . . . . 213 . . . . . . . . . . 29 465 . . Explosions 1355 | . 106 129 118 341 138 91 . . . 343 . . 89 . . . . . Melee 3595 | . . . . . . 1046 . 177 . . . 144 1158 . 692 378 . . Ramming . | . . . . . . . . . . . . . . . . . . . Kinetic 2398 | 70 340 . 1107 490 . . . . . . . . 205 . . . 186 . Thermal 1140 | . . . . 213 138 . . . . . . 100 195 . 29 465 . . Explosive 669 | . 106 129 . . . 91 . . . 343 . . . . . . . . Electromagnetic 453 | . . . 121 . 243 . . . . . . . 89 . . . . . Impact . | . . . . . . . . . . . . . . . . . . . Slashing 3555 | . . . . . . 1046 . 177 . . . 124 1138 . 692 378 . . Piercing 40 | . . . . . . . . . . . . 20 20 . . . . . Highest Corruption 10 | . . . . . . . 7 7 . . . . . 10 10 5 4 4 Average Corruption 4 | . . . . . . . 7 5 . . . . . 10 5 4 4 4 Corruption Purged 16 | . . . . . . . . 7 . . . . . . 8 1 . . Corruption Blocked . | . . . . . . . . . . . . . . . . . . . Effects 60 | . . . . . . . . 4 . . . . . 2 26 18 8 2 Message Errors 11 | . . . . . . . . 1 . . . . . . 5 3 2 . Matter Fused 19 | . . . . . . . . . . . . . . 1 5 8 4 1 Heat Flow Errors 10 | . . . . . . . . 1 . . . . . . 5 3 . 1 Energy Discharges 5 | . . . . . . . . 1 . . . . . . . 2 2 . Parts Rejected 1 | . . . . . . . . . . . . . . . 1 . . . Data Loss (minor) 3 | . . . . . . . . . . . . . . . 3 . . . Data Loss (major) 3 | . . . . . . . . . . . . . . . 2 1 . . Alerts 6 | . . . . . . . . 1 . . . . . . 4 1 . . Misdirections 2 | . . . . . . . . . . . . . . 1 1 . . . Overload Shots . | . . . . . . . . . . . . . . . . . . . Overflow Damage 583 | . . . . 44 . 45 . 13 . 18 . . 92 . 231 140 . . Projectiles 7 | . . . . 7 . . . . . . . . . . . . . . Explosions 61 | . . . . 37 . . . . . 18 . . 6 . . . . . Melee 515 | . . . . . . 45 . 13 . . . . 86 . 231 140 . . Knockbacks . | . . . . . . . . . . . . . . . . . . . Impact . | . . . . . . . . . . . . . . . . . . . Kinetic . | . . . . . . . . . . . . . . . . . . . Secondary . | . . . . . . . . . . . . . . . . . . . Self-Inflicted Damage 122 | . . 23 9 23 . 2 . . . 55 . . 10 . . . . . Shots 7 | . . 2 1 1 . 1 . . . 1 . . 1 . . . . . Rammed . | . . . . . . . . . . . . . . . . . . . Targets Rammed . | . . . . . . . . . . . . . . . . . . . Kicked . | . . . . . . . . . . . . . . . . . . . Crushed . | . . . . . . . . . . . . . . . . . . . Highest Temperature 413 | . 80 48 3 318 413 72 7 104 1 4 2 99 252 21 200 144 . 61 Average Temperature 64 | . 42 21 3 129 163 18 4 56 1 3 2 34 69 9 67 47 . 33 Received Heat Transfer 1169 | . . . 105 90 333 6 . . . . . 27 351 . 149 108 . . Effects 6 | . . . . . 4 . . . . . . . 2 . . . . . Shutdowns 1 | . . . . . 1 . . . . . . . . . . . . . Energy Bleed 1 | . . . . . 1 . . . . . . . . . . . . . Interference 2 | . . . . . . . . . . . . . 2 . . . . . Matter Decay 1 | . . . . . 1 . . . . . . . . . . . . . Short Circuit 1 | . . . . . 1 . . . . . . . . . . . . . Siege Activations . | . . . . . . . . . . . . . . . . . . . Martial Activations . | . . . . . . . . . . . . . . . . . . . Shielding Activations . | . . . . . . . . . . . . . . . . . . . Robots Disrupted . | . . . . . . . . . . . . . . . . . . . Combat Hostiles . | . . . . . . . . . . . . . . . . . . . Robots Corrupted 1 | . . . 1 . . . . . . . . . . . . . . . Combat Hostiles 1 | . . . 1 . . . . . . . . . . . . . . . Parts Fried 6 | . . . 3 . 1 . . . . . . . . . 1 . 1 . Impact Corruptions . | . . . . . . . . . . . . . . . . . . . Robots Melted 2 | . . . . . . . . . . . . . . . . 2 . . Combat Hostiles 2 | . . . . . . . . . . . . . . . . 2 . . Parts Melted 7 | . . . . . . . . . . . . 2 2 . . 3 . . Heat Transferred 1556 | . . . . 296 113 . . . . . . 296 259 . 37 555 . . Parts Sabotaged . | . . . . . . . . . . . . . . . . . . . Parts Stolen . | . . . . . . . . . . . . . . . . . . . Parts Stripped . | . . . . . . . . . . . . . . . . . . . Power Chain Reactions 4 | . . . . . 2 . . . . . . . . . 2 . . . Alert | -11 -10 -10 -10 -8 -8 -7 -7 -7 -7 -7 -7 -6 -6 -6 -6 -6 -6 -6 ------- Run | Yrd Mat Min Sub Mat Sto Fac Was Fac Low Low Zio Pro Fac Was Fac Ext Cet Arc Maximum Alert Level 3 | . . . . . 1 2 1 . . . . . 1 . 2 2 2 3 Low Security (%) 55 | 100 100 100 . 100 81 49 . 100 . . . . 51 100 42 . . 52 Level 1 31 | . . . . . 18 25 100 . . . . . 48 . 54 27 95 12 Level 2 12 | . . . . . . 25 . . . . . . . . 2 72 4 22 Level 3 . | . . . . . . . . . . . . . . . . . . 11 Level 4 . | . . . . . . . . . . . . . . . . . . . Level 5 . | . . . . . . . . . . . . . . . . . . . High Security . | . . . . . . . . . . . . . . . . . . . Max Security . | . . . . . . . . . . . . . . . . . . . Peak Influence 866 | 5 70 83 . 155 268 652 225 188 . . . . 299 90 452 680 403 866 Initial 365 | . . . . . 61 112 225 150 . . . . 39 90 56 235 365 138 Average 211 | 2 13 32 . 14 98 282 222 144 . . . . 179 87 187 499 346 317 Influence Increases 6723 | 15 108 118 . 214 453 873 . 431 15 70 . 274 820 . 1048 1147 308 829 Destroy 0b10 Robot/C 2620 | . 60 60 . 100 60 100 . 140 . 60 . 220 480 . 220 560 160 400 Destroy 0b10 Robot/NC 205 | 15 20 . . 15 10 35 . 15 . . . . 5 . 40 40 10 . Destroy Leader 338 | . 12 10 . 30 10 32 . 36 . 10 . 10 60 . 66 62 . . Allied During Kill 1211 | . . . . . 3 . . 32 . . . 44 92 . 97 420 128 395 Successful Hack 272 | . 13 . . 9 27 133 . 74 . . . . . . 2 14 . . Select Force Hacks 310 | . . . . . 30 80 . 60 . . . . 30 . 110 . . . Disable Machine 225 | . . . . . 45 15 . . . . . . 30 . 105 15 . 15 Anti-Garrison Action 200 | . . . . . . 200 . . . . . . . . . . . . Destroy Structure 277 | . 3 18 . 45 13 53 . 14 . . . . 33 . 33 36 10 19 Partial Spotted 270 | . . . . . 90 75 . 45 . . . . 45 . 15 . . . Lose Combat Pursuer 795 | . . 30 . 15 165 150 . 15 15 . . . 45 . 360 . . . Influence Decreases 5916 | 15 108 118 . 69 349 477 430 545 116 20 50 210 625 179 646 975 615 369 Entered New Map 1757 | . . . . . 84 137 420 65 38 . 50 . 25 169 24 247 289 209 Time Decay 2794 | 15 108 118 . 59 130 310 10 380 78 10 . 80 450 10 422 368 206 40 Lost Part 445 | . . . . 10 55 20 . . . 10 . 40 90 . 140 20 20 40 Lost Ally 920 | . . . . . 80 10 . 100 . . . 90 60 . 60 340 100 80 Squads Dispatched 52 | . . . . . 6 11 . 6 . . . 1 9 . 16 3 . . Investigation 27 | . . . . . 3 9 . 3 . . . 1 3 . 8 . . . Extermination 12 | . . . . . . 2 . 3 . . . . 3 . 4 . . . Reinforcement 9 | . . . . . . . . . . . . . 3 . 4 2 . . Assault 3 | . . . . . 2 . . . . . . . . . . 1 . . Garrison 1 | . . . . . 1 . . . . . . . . . . . . . Intercept . | . . . . . . . . . . . . . . . . . . . Searches Triggered . | . . . . . . . . . . . . . . . . . . . Construction Impeded 3 | . . . . . . . . . . . . . 1 . 1 1 . . Haulers Reinforced 2 | . . . . . . . . . . . . . . . 2 . . . Active Scanning Responses . | . . . . . . . . . . . . . . . . . . . Cargo Convoy Interrupts . | . . . . . . . . . . . . . . . . . . . Stealth | -11 -10 -10 -10 -8 -8 -7 -7 -7 -7 -7 -7 -6 -6 -6 -6 -6 -6 -6 --------- Run | Yrd Mat Min Sub Mat Sto Fac Was Fac Low Low Zio Pro Fac Was Fac Ext Cet Arc Distress Signals 12 | . . . . 1 1 . . . . . . . 1 . 5 2 2 . Communications Jammed . | . . . . . . . . . . . . . . . . . . . Distress Signals . | . . . . . . . . . . . . . . . . . . . Times Spotted 281 | . 3 7 10 12 31 24 5 13 1 3 . 17 40 5 49 31 7 23 Peak Tracking Total 16 | . 3 3 3 7 13 5 5 4 1 3 . 7 5 5 12 6 5 16 Tactical Retreats 24 | . . 1 . 1 5 6 . 1 1 . . . 2 . 7 . . . Traps | -11 -10 -10 -10 -8 -8 -7 -7 -7 -7 -7 -7 -6 -6 -6 -6 -6 -6 -6 ------- Run | Yrd Mat Min Sub Mat Sto Fac Was Fac Low Low Zio Pro Fac Was Fac Ext Cet Arc Traps Triggered 13 | . 1 . . . . 2 . 4 . . . . 4 . 1 1 . . Indirectly 3 | . . . . . . . . . . . . . 3 . . . . . Trap Hack Attempts . | . . . . . . . . . . . . . . . . . . . Triggered . | . . . . . . . . . . . . . . . . . . . Disarmed . | . . . . . . . . . . . . . . . . . . . Reprogrammed . | . . . . . . . . . . . . . . . . . . . Reused . | . . . . . . . . . . . . . . . . . . . Traps Extracted . | . . . . . . . . . . . . . . . . . . . Installed . | . . . . . . . . . . . . . . . . . . . Triggered . | . . . . . . . . . . . . . . . . . . . Machines | -11 -10 -10 -10 -8 -8 -7 -7 -7 -7 -7 -7 -6 -6 -6 -6 -6 -6 -6 ---------- Run | Yrd Mat Min Sub Mat Sto Fac Was Fac Low Low Zio Pro Fac Was Fac Ext Cet Arc Machines Disabled 17 | . . . . . 3 1 . . . . . . 2 . 7 3 . 1 Max in Single Turn 1 | . . . . . 1 1 . . . . . . 1 . . . . . Garrison Access 6 | . . . . . . 3 . 1 . . . . 2 . . . . . Machines Repaired . | . . . . . . . . . . . . . . . . . . . Machines Dismantled . | . . . . . . . . . . . . . . . . . . . Machines Sabotaged . | . . . . . . . . . . . . . . . . . . . Overloaded Fab Kills 7 | . . . . . . . . . . . . . . . 7 . . . Hacking | -11 -10 -10 -10 -8 -8 -7 -7 -7 -7 -7 -7 -6 -6 -6 -6 -6 -6 -6 --------- Run | Yrd Mat Min Sub Mat Sto Fac Was Fac Low Low Zio Pro Fac Was Fac Ext Cet Arc Machines Accessed 84 | . 3 . . 2 12 27 . 17 . 1 . 1 8 . 9 3 . 1 Terminals 43 | . 3 . . 2 10 15 . 8 . 1 . 1 . . . 3 . . Fabricators 11 | . . . . . . 2 . 3 . . . . 3 . 3 . . . Repair Stations 8 | . . . . . . 2 . 2 . . . . 1 . 3 . . . Recycling Units 9 | . . . . . 1 3 . 2 . . . . 1 . 2 . . . Scanalyzers 4 | . . . . . . 1 . 1 . . . . 1 . 1 . . . Garrison Access 8 | . . . . . 1 4 . 1 . . . . 2 . . . . . Total Hacks 237 | . 7 . . 7 32 66 . 41 . 1 . 5 20 . 27 6 . 25 Successful 155 | . 3 . . 6 20 36 . 29 . 1 . 5 12 . 15 3 . 25 Failed 82 | . 4 . . 1 12 30 . 12 . . . . 8 . 12 3 . . Catastrophic 6 | . . . . . 2 . . 1 . . . . 1 . 1 1 . . Database Lockouts . | . . . . . . . . . . . . . . . . . . . Manual 216 | . 7 . . 6 27 44 . 26 . . . . 42 . 55 8 1 . Terminals 118 | . 7 . . 7 29 43 . 20 . 1 . 5 . . . 6 . . Fabricators 34 | . . . . . . 3 . 10 . . . . 14 . 7 . . . Repair Stations 17 | . . . . . . 3 . 3 . . . . 1 . 10 . . . Recycling Units 13 | . . . . . 1 4 . 5 . . . . 1 . 2 . . . Scanalyzers 15 | . . . . . . 3 . 2 . . . . 2 . 8 . . . Garrison Access 15 | . . . . . 2 10 . 1 . . . . 2 . . . . . Terminal Hacks 52 | . . . . 2 6 8 . 2 . 1 . 5 . . . 3 . 25 Record 31 | . . . . . . . . . . 1 . 5 . . . . . 25 Part Schematic 1 | . . . . . . 1 . . . . . . . . . . . . Robot Schematic 1 | . . . . . . 1 . . . . . . . . . . . . Prototype ID Bank 4 | . . . . 1 . 2 . 1 . . . . . . . . . . Open Door 6 | . . . . . 3 . . . . . . . . . . 3 . . Level Access Points 1 | . . . . . 1 . . . . . . . . . . . . . Branch Access Points 1 | . . . . . . 1 . . . . . . . . . . . . Machine Index 1 | . . . . . . 1 . . . . . . . . . . . . Terminal Index 2 | . . . . 1 1 . . . . . . . . . . . . . Zone Layout 4 | . . . . . 1 2 . 1 . . . . . . . . . . Fabricator Hacks 17 | . . . . . . 1 . 6 . . . . 7 . 3 . . . Network Status 3 | . . . . . . . . 1 . . . . 1 . 1 . . . Load Schematic 8 | . . . . . . 1 . 2 . . . . 3 . 2 . . . Build 6 | . . . . . . . . 3 . . . . 3 . . . . . Repair Station Hacks 2 | . . . . . . . . 2 . . . . . . . . . . Scan Component 1 | . . . . . . . . 1 . . . . . . . . . . Repair 1 | . . . . . . . . 1 . . . . . . . . . . Recycling Unit Hacks . | . . . . . . . . . . . . . . . . . . . Scanalyzer 10 | . . . . . . 2 . 2 . . . . . . 6 . . . Insert Component 5 | . . . . . . 1 . 1 . . . . . . 3 . . . Analyze 5 | . . . . . . 1 . 1 . . . . . . 3 . . . Garrison Access Hacks 5 | . . . . . . 2 . 1 . . . . 2 . . . . . Seal Access 5 | . . . . . . 2 . 1 . . . . 2 . . . . . Unauthorized Hacks 69 | . 3 . . 4 14 23 . 16 . . . . 3 . 6 . . . Terminals 43 | . 3 . . 4 12 15 . 9 . . . . . . . . . . Track 4 | . . . . . 2 2 . . . . . . . . . . . . Assimilate 3 | . . . . . 1 1 . 1 . . . . . . . . . . Botnet 15 | . 1 . . 2 4 5 . 3 . . . . . . . . . . Disrupt 1 | . . . . . . 1 . . . . . . . . . . . . Skim 20 | . 2 . . 2 5 6 . 5 . . . . . . . . . . Fabricators 7 | . . . . . . 2 . 2 . . . . 1 . 2 . . . Prioritize 3 | . . . . . . . . 2 . . . . 1 . . . . . Overload 1 | . . . . . . . . . . . . . . . 1 . . . Download 1 | . . . . . . 1 . . . . . . . . . . . . Recompile 2 | . . . . . . 1 . . . . . . . . 1 . . . Repair Stations 6 | . . . . . . 2 . 1 . . . . 1 . 2 . . . Patch 6 | . . . . . . 2 . 1 . . . . 1 . 2 . . . Recycling Units 11 | . . . . . 1 3 . 4 . . . . 1 . 2 . . . Reject 1 | . . . . . . . . 1 . . . . . . . . . . Mask 2 | . . . . . . 1 . 1 . . . . . . . . . . Tunnel 8 | . . . . . 1 2 . 2 . . . . 1 . 2 . . . Scanalyzers . | . . . . . . . . . . . . . . . . . . . Garrison Access 2 | . . . . . 1 1 . . . . . . . . . . . . Reprogram 1 | . . . . . 1 . . . . . . . . . . . . . Jam 1 | . . . . . . 1 . . . . . . . . . . . . Data Cores Recovered 1 | . . . . . . 1 . . . . . . . . . . . . Used 1 | . . . . . . 1 . . . . . . . . . . . . Hacking Detections 53 | . 3 . . 2 9 20 . 10 . 1 . 1 3 . 3 1 . . Full Trace Events 6 | . . . . . 1 1 . . . . . 1 1 . 2 . . . Feedback Events 1 | . . . . . . . . . . . . . . . 1 . . . Hackware Fried 1 | . . . . . . . . . . . . . . . 1 . . . Feedback Blocked . | . . . . . . . . . . . . . . . . . . . Robot Schematics Acquired 10 | . . . . . . 2 . . . . 3 . . . 5 . . . Robots Built 7 | . . . . . . . . 7 . . . . . . . . . . Authchips 2 | . . . . . . . . 2 . . . . . . . . . . Time 174 | . . . . . . . . 174 . . . . . . . . . . Total Robot Build Rating 21 | . . . . . . . . 21 . . . . . . . . . . Part Schematics Acquired 87 | . . . . . . 2 . 1 . . 15 . 37 . 32 . . . Parts Built 6 | . . . . . . . . . . . . . 6 . . . . . Authchips 3 | . . . . . . . . . . . . . 3 . . . . . Time 212 | . . . . . . . . . . . . . 212 . . . . . Total Part Build Rating 36 | . . . . . . . . . . . . . 36 . . . . . Parts Repaired 1 | . . . . . . . . 1 . . . . . . . . . . Time 56 | . . . . . . . . 56 . . . . . . . . . . Parts Recycled . | . . . . . . . . . . . . . . . . . . . Recycled Matter . | . . . . . . . . . . . . . . . . . . . Retrieved Matter . | . . . . . . . . . . . . . . . . . . . Retrieved Components . | . . . . . . . . . . . . . . . . . . . Parts Scanalyzed 5 | . . . . . . 1 . 1 . . . . . . 3 . . . Part Schematics Acquired 5 | . . . . . . 1 . 1 . . . . . . 3 . . . Parts Damaged 1 | . . . . . . . . . . . . . . . 1 . . . Bothacking | -11 -10 -10 -10 -8 -8 -7 -7 -7 -7 -7 -7 -6 -6 -6 -6 -6 -6 -6 ------------ Run | Yrd Mat Min Sub Mat Sto Fac Was Fac Low Low Zio Pro Fac Was Fac Ext Cet Arc Used RIF Installer . | . . . . . . . . . . . . . . . . . . . Robots Hacked 2 | . . . . . . . . . . . . . . . . 2 . . Non-combat . | . . . . . . . . . . . . . . . . . . . Combat 2 | . . . . . . . . . . . . . . . . 2 . . Robot Hacks Applied 2 | . . . . . . . . . . . . . . . . 2 . . parse_system 2 | . . . . . . . . . . . . . . . . 2 . . Relay Couplers Released 1 | . . . . . . . . . . . . . 1 . . . . . Machine Destruction 1 | . . . . . . . . . . . . . 1 . . . . . Fabnet Peak Effective % . | . . . . . . . . . . . . . . . . . . . Robots Rewired 10 | . . . . . . . . . . . . . . . . 10 . . Allies Hacked 1 | . . . . . . . . 1 . . . . . . . . . . Hacks Repelled . | . . . . . . . . . . . . . . . . . . . Allies | -11 -10 -10 -10 -8 -8 -7 -7 -7 -7 -7 -7 -6 -6 -6 -6 -6 -6 -6 -------- Run | Yrd Mat Min Sub Mat Sto Fac Was Fac Low Low Zio Pro Fac Was Fac Ext Cet Arc Total Allies 63 | . . . . . 4 1 . 8 . . 4 2 6 . 7 26 5 . Largest Group 15 | . . . . . 2 1 . 6 1 1 5 5 4 . 7 15 10 9 Highest-Rated Group 765 | . . . . . 62 26 . 122 26 24 180 180 239 . 322 422 765 735 Highest-Rated Ally 159 | . . . . . 31 26 . 26 26 24 40 40 70 . 70 159 159 159 Zionite Dispatches 6 | . . . . . . . . . . . . . 2 . 2 2 . . Light 3 | . . . . . . . . . . . . . 1 . 1 1 . . Recon 1 | . . . . . . . . . . . . . 1 . . . . . Fire 2 | . . . . . . . . . . . . . . . 1 1 . . Total Orders 31 | . . . . . . . . . . . . 2 7 . 10 5 5 2 STAY 2 | . . . . . . . . . . . . 1 . . . . 1 . ROAM 3 | . . . . . . . . . . . . . . . 1 . 1 1 FOLLOW 7 | . . . . . . . . . . . . 1 . . 3 . 2 1 EXPLORE 5 | . . . . . . . . . . . . . 2 . 3 . . . RETURN 14 | . . . . . . . . . . . . . 5 . 3 5 1 . Ally Attacks 568 | . . . . . 24 . . 43 . . . 34 111 . 46 188 55 67 Total Damage 14568 | . . . . . 345 . . 807 . . . 1016 2166 . 1781 3605 1089 3759 Kills 102 | . . . . . 1 . . 9 . . . 5 11 . 17 29 8 22 Allies Corrupted 1 | . . . . . . . . . . . . . . . . 1 . . Allies Melted . | . . . . . . . . . . . . . . . . . . . Intel | -11 -10 -10 -10 -8 -8 -7 -7 -7 -7 -7 -7 -6 -6 -6 -6 -6 -6 -6 ------- Run | Yrd Mat Min Sub Mat Sto Fac Was Fac Low Low Zio Pro Fac Was Fac Ext Cet Arc Active Infowar (turns) 7711 | 8 378 262 456 298 263 693 24 886 177 157 422 262 1270 25 816 807 420 87 Sensors 4167 | . . . . . . 270 24 882 177 157 422 162 1232 25 816 . . . Terrain 790 | . 72 262 456 . . . . . . . . . . . . . . . Structural 4996 | . . . . . 128 693 24 843 177 157 422 262 788 . 188 807 420 87 Seismic 747 | 8 306 . . 298 135 . . . . . . . . . . . . . Robot Analysis Total . | . . . . . . . . . . . . . . . . . . . Derelict Logs Recovered 10 | . . 3 1 . . . . . 2 . 2 2 . . . . . . Drone Launches 17 | . . . . . . . . . . . . . 7 . 4 5 1 . Drone Recoveries 17 | . . . . . . . . . . . . . 7 . 4 5 1 . Zionite Intel Received 15 | . . . . . . . . . . . . . 7 . 8 . . . Prototype Stockpiles 2 | . . . . . . . . . . . . . 1 . 1 . . . Component Schematics 3 | . . . . . . . . . . . . . 1 . 2 . . . Prototype Schematics 2 | . . . . . . . . . . . . . 2 . . . . . Unaware Schematics 1 | . . . . . . . . . . . . . . . 1 . . . Unaware Analyses 3 | . . . . . . . . . . . . . 2 . 1 . . . Trap Installations 1 | . . . . . . . . . . . . . 1 . . . . . Active Terminals 1 | . . . . . . . . . . . . . . . 1 . . . Depthwide Sectors/0 1 | . . . . . . . . . . . . . . . 1 . . . Depthwide Sectors/-1 1 | . . . . . . . . . . . . . . . 1 . . . Exploration | -11 -10 -10 -10 -8 -8 -7 -7 -7 -7 -7 -7 -6 -6 -6 -6 -6 -6 -6 ------------- Run | Yrd Mat Min Sub Mat Sto Fac Was Fac Low Low Zio Pro Fac Was Fac Ext Cet Arc Turns Passed 8618 | 83 385 262 963 318 286 693 24 886 177 157 422 262 1285 25 1028 855 420 87 Spaces Moved 11780 | 55 300 250 555 180 394 1860 84 1349 306 318 858 414 1893 88 1997 562 245 72 Core 15 | 1 . . . . 2 . . . . . . . . . . 12 . . Treads 3 | . . . 3 . . . . . . . . . . . . . . . Legs 453 | . . . . . . . . . . . . . . . . 136 245 72 Wheels 1755 | 54 300 250 552 180 73 . . . . . . . . . . 346 . . Hover 141 | . . . . . . . . . . . . . 98 . . 43 . . Flight 9413 | . . . . . 319 1860 84 1349 306 318 858 414 1795 88 1997 25 . . Fastest Speed 21 | 50 80 80 80 106 23 21 25 25 22 25 25 25 22 25 24 35 120 120 Average Speed 42 | 99 94 91 105 112 44 24 25 25 25 25 25 26 31 25 30 100 120 120 Slowest Speed 190 | 100 100 95 160 120 150 28 25 110 26 26 25 102 112 25 112 190 120 120 Overloaded Moves . | . . . . . . . . . . . . . . . . . . . Propulsion Burnouts . | . . . . . . . . . . . . . . . . . . . Robots Hopped 54 | . . . . . 11 13 4 4 . . . . 4 5 13 . . . Potential Cave-ins . | . . . . . . . . . . . . . . . . . . . Cave-ins Triggered . | . . . . . . . . . . . . . . . . . . . Exploration Rate (%) 56 | 3 26 68 35 26 84 59 67 38 63 58 90 52 51 75 52 70 78 82 Regions Visited 18 Branch Regions 10 Pre-discovered Areas 30 | . . 1 . . 1 4 . 3 2 . 2 . 1 . 16 . . . Known Exits Taken 10 | . . . . 1 1 . . 1 1 1 1 1 . . 1 1 1 . Unknown Exits Taken 4 | 1 1 1 1 . . . . . . . . . . . . . . . Scrap Searched 10 | . . 2 3 . . . . . 1 . 3 1 . . . . . . Spaces Dug 108 | . 2 1 . 4 6 23 . 14 . . . 1 16 . 19 22 . . Terrain Destroyed 286 | . 4 18 17 45 12 63 . 14 . 49 . 1 20 . 19 23 1 . Melee 86 | . . . . 3 6 23 . 14 . . . 1 16 . 19 4 . . Projectile 33 | . 4 1 . 4 . . . . . . . . 4 . . 19 1 . AOE 167 | . . 17 17 38 6 40 . . . 49 . . . . . . . . Terrain Rammed . | . . . . . . . . . . . . . . . . . . . Walls Destroyed . | . . . . . . . . . . . . . . . . . . . Machines Disabled . | . . . . . . . . . . . . . . . . . . . Actions | -11 -10 -10 -10 -8 -8 -7 -7 -7 -7 -7 -7 -6 -6 -6 -6 -6 -6 -6 --------- Run | Yrd Mat Min Sub Mat Sto Fac Was Fac Low Low Zio Pro Fac Was Fac Ext Cet Arc Total 14666 | 71 345 267 861 264 458 1978 82 1848 402 387 1062 554 2437 85 2349 785 359 72 Wait 2157 | . 2 7 244 58 34 27 1 468 97 60 198 109 385 3 251 114 99 . Move 11661 | 54 299 249 554 179 371 1834 77 1340 305 317 857 413 1885 79 1971 561 244 72 Hop 49 | . . . . . 11 13 2 4 . . . . 4 3 12 . . . Pick Up 62 | 5 3 . 4 3 1 12 1 2 . 2 2 . 12 . 10 5 . . Fast Attach 104 | 7 . . 6 4 13 9 . 6 . 1 . 3 26 . 11 16 2 . Attach 37 | . 2 . 3 . 2 1 . 4 . . . . 14 . 7 4 . . Detach 23 | . . . 1 1 3 1 . 1 . . . . 9 . 4 3 . . Swap 66 | . 5 5 8 4 . 5 . 3 . 1 2 2 5 . 13 9 4 . Drop 67 | . 5 . 3 . 3 10 1 2 . 2 2 2 14 . 18 4 1 . Fire 195 | 5 29 6 38 12 11 2 . . . 4 . 10 14 . 1 54 9 . Melee 221 | . . . . 3 9 64 . 17 . . 1 15 69 . 33 10 . . Ram . | . . . . . . . . . . . . . . . . . . . Kick . | . . . . . . . . . . . . . . . . . . . Crush . | . . . . . . . . . . . . . . . . . . . Escape Stasis 23 | . . . . . . . . . . . . . . . 18 5 . . Rewire 1 | . . . . . . . . 1 . . . . . . . . . . Trap . | . . . . . . . . . . . . . . . . . . . Miscellaneous . | . . . . . . . . . . . . . . . . . . . Route ------- -11/Scrapyard -10/Materials -10/Mines -10/Subcaves -8/Materials (discovered 4 exits: Fac x2 / *Sto x2) -8/Storage (discovered 2 exits: *Fac / [Rec]) -7/Factory (discovered 3 exits: *Fac / *Low x2) -7/Waste -7/Factory -7/Lower Caves -7/Lower Caves -7/Zion -6/Proximity Caves -6/Factory (discovered 4 exits: *Fac / *Low / Ext x2) -6/Waste -6/Factory (discovered 3 exits: *Fac / *Low / *Ext) -6/Extension (discovered 2 exits: *Fac / *Cet) -6/Cetus (discovered 2 exits: *Fac / *Arc) -6/Archives (discovered 2 exits: *Fac / [*Hub]) History --------- Turn | Location | Event 10 | -11/Scrapyard | Discovered new exit (range 15) 84 | -11/Scrapyard | Entered Materials 125 | -10/Materials | Discovered new exit (range 8) 304 | -10/Materials | Build established: Mutant 469 | -10/Materials | Entered Mines 491 | -10/Mines | Learned location of Zion (-7) 498 | -10/Mines | Joined a pair of Derelicts in attacking an 0b10 outpost 532 | -10/Mines | Learned 8 Materials zone layouts 650 | -10/Mines | Learned Materials non-interactive machine intel 713 | -10/Mines | Discovered new exit (range 15) 731 | -10/Mines | Entered Subcaves 737 | -10/Subcaves | Learned Materials stockpile data 809 | -10/Subcaves | Build established: Scavenger-Mutant 864 | -10/Subcaves | Discovered new exit (range 6) 877 | -10/Subcaves | Disturbed a concealed Subdweller 1220 | -10/Subcaves | Lost 4 parts (1n1u2w) 1260 | -10/Subcaves | Core integrity fell below 50% 1319 | -10/Subcaves | Shifting Twisted Machinery released Sub. Machine Gun 1335 | -10/Subcaves | Shifting Twisted Machinery released Mak. Kinetic Plating 1377 | -10/Subcaves | Ambushed by Subdwellers from Twisted Machinery 1408 | -10/Subcaves | Core integrity fell below 20% 1521 | -10/Subcaves | A Subdweller sparked back to life 1521 | -10/Subcaves | A Subdweller sparked back to life 1521 | -10/Subcaves | A Subdweller sparked back to life 1538 | -10/Subcaves | Found Prototype Power Core 1538 | -10/Subcaves | Identified Meta Core 1539 | -10/Subcaves | Attached Meta Core, gained temporary slots: Propulsion, Utility, Weapon 1635 | -10/Subcaves | Build established: Mutant 1694 | -10/Subcaves | Entered Materials 1694 | -8/Materials | Evolved 4 slots: Propulsion x2, Utility x2 1694 | -8/Materials | Discovered new exit (range 7) 1695 | -8/Materials | Identified exit to Storage 1695 | -8/Materials | Identified exit to Factory 1697 | -8/Materials | Loaded intel: 31 non-interactive machine locations 2012 | -8/Materials | Entered Storage 2039 | -8/Storage | Met a pair of Derelict thieves 2134 | -8/Storage | Core integrity fell below 50% 2171 | -8/Storage | Lost 6 parts (2n2u2w) 2193 | -8/Storage | Garrison activated, responded to threat 2249 | -8/Storage | Discovered new exit (range 10) 2298 | -8/Storage | Entered Factory 2298 | -7/Factory | Evolved 2 slots: Propulsion x1, Utility x1 2315 | -7/Factory | Found Powered Armor 2579 | -7/Factory | Learned location of 1 exit from Proximity Caves 2581 | -7/Factory | Identified exit to Lower Caves 2625 | -7/Factory | Identified exit to Factory 2659 | -7/Factory | Learned location of 2 exits from Proximity Caves 2697 | -7/Factory | Learned location of Cetus (-6) 2702 | -7/Factory | Learned location of Warlord (-4) 2703 | -7/Factory | Learned location of 1 exit from Hub_04(d) 2710 | -7/Factory | Learned location of 1 exit from Extension 2727 | -7/Factory | Learned location of 1 exit from Upper Caves 2756 | -7/Factory | Learned 2 Extension zone layouts 2991 | -7/Factory | Manually triggered Chute Trap 2991 | -7/Factory | Sucked down chute 2991 | -7/Factory | Entered Waste 2999 | -7/Waste | Spotted C-40 Crusher 3003 | -7/Waste | Spotted C-40 Crusher 3005 | -7/Waste | Spotted C-40 Crusher 3006 | -7/Waste | EMP discharged 3008 | -7/Waste | Spotted C-40 Crusher 3012 | -7/Waste | Spotted C-40 Crusher 3012 | -7/Waste | Discovered new exit (range 10) 3013 | -7/Waste | Build established: Scout 3015 | -7/Waste | Identified exit to Factory 3015 | -7/Waste | Entered Factory 3185 | -7/Factory | Fabricated X-57 Shotgunner (x2) 3249 | -7/Factory | Fabricated X-57 Shotgunner? 3327 | -7/Factory | Repaired Field Propulsion Drive 3400 | -7/Factory | Discovered exit to Lower Caves (range 13) 3548 | -7/Factory | Learned location of 1 exit from Cetus 3580 | -7/Factory | Fabricated G-47 Trooper (x3) 3624 | -7/Factory | Learned location of 1 exit from Hub_04(d) 3748 | -7/Factory | Learned location of Proximity Caves (-5) 3836 | -7/Factory | Learned 2 Lower Caves zone layouts 3866 | -7/Factory | Learned Extension trap positions 3871 | -7/Factory | Build established: Commander-Scout 3896 | -7/Factory | P-60 Hacker assimilated allied Trooper 4c 3901 | -7/Factory | Entered Lower Caves 3901 | -7/Lower Caves | Accompanied by 1 ally 3905 | -7/Lower Caves | Encountered a Warlord checkpoint 3961 | -7/Lower Caves | Lost 4 allies 4065 | -7/Lower Caves | Discovered new exit (range 9) 4066 | -7/Lower Caves | Identified exit to Lower Caves 4078 | -7/Lower Caves | Entered another Lower Caves area 4078 | -7/Lower Caves | Accompanied by 1 ally 4079 | -7/Lower Caves | Encountered a Warlord checkpoint 4190 | -7/Lower Caves | Discovered new exit (range 15) 4194 | -7/Lower Caves | Build established: Scout 4234 | -7/Lower Caves | Identified exit to Zion 4235 | -7/Lower Caves | Entered Zion 4235 | -7/Zion | Accompanied by 1 ally 4238 | -7/Zion | Given the Hacking Drone Bay 4239 | -7/Zion | Found Prototype Device 4241 | -7/Zion | Learned 4 Factory zone layouts 4256 | -7/Zion | Discovered new exit (range 16) 4276 | -7/Zion | Learned location of Quarantine (-3) 4388 | -7/Zion | Met Imprinter 4393 | -7/Zion | Imprinted 4403 | -7/Zion | Declared Zion's savior 4425 | -7/Zion | Identified Hacking Drone Bay 4604 | -7/Zion | Identified exit to Proximity Caves 4657 | -7/Zion | Entered Proximity Caves 4657 | -6/Proximity Caves | Accompanied by 5 allies 4776 | -6/Proximity Caves | Learned 6 Upper Caves zone layouts 4776 | -6/Proximity Caves | Learned Research emergency access door positions 4776 | -6/Proximity Caves | Learned Extension trap positions 4791 | -6/Proximity Caves | Attracted the attention of an 0b10 base 4813 | -6/Proximity Caves | Learned location of 1 exit from Factory 4849 | -6/Proximity Caves | Lost 5 allies 4850 | -6/Proximity Caves | Lost 3 parts (2n1u) 4909 | -6/Proximity Caves | Learned Factory trap positions 4919 | -6/Proximity Caves | Spotted B-75 Beast 4919 | -6/Proximity Caves | Entered Factory 4919 | -6/Factory | Evolved 2 slots: Propulsion x1, Utility x1 4920 | -6/Factory | Identified exit to Extension 4921 | -6/Factory | Identified exit to Factory 4923 | -6/Factory | Zion Light squad teleported in 4923 | -6/Factory | Loaded intel: 104 trap records 5069 | -6/Factory | Retrieved Zion intel report: Unaware Analyses 5108 | -6/Factory | Discovered new exit (range 13) 5207 | -6/Factory | Retrieved Zion intel report: Component Schematics 5266 | -6/Factory | Build established: Hacker-Scout 5332 | -6/Factory | Fabricated Field Propulsion Drive (x2) 5379 | -6/Factory | Retrieved Zion intel report: Trap Installations 5443 | -6/Factory | Fabricated Field Propulsion Drive (x2) 5588 | -6/Factory | Found Prototype Protection 5588 | -6/Factory | Identified Zio. Weapon Casing 5742 | -6/Factory | Retrieved Zion intel report: Prototype Stockpiles 5763 | -6/Factory | Retrieved Zion intel report: Prototype Schematics 5791 | -6/Factory | Retrieved Zion intel report: Unaware Analyses 5918 | -6/Factory | Retrieved Zion intel report: Prototype Schematics 5919 | -6/Factory | Zion Recon squad teleported in 6027 | -6/Factory | Fabricated Field Propulsion Drive (x2) 6058 | -6/Factory | Lost 4 parts (1p3n) 6151 | -6/Factory | Found Prototype Processor 6151 | -6/Factory | Identified Exp. Targeting Computer 6204 | -6/Factory | Manually triggered Chute Trap 6204 | -6/Factory | Sucked down chute 6204 | -6/Factory | Entered Waste 6208 | -6/Waste | Spotted C-40 Crusher 6208 | -6/Waste | Spotted C-40 Crusher 6209 | -6/Waste | Spotted C-40 Crusher 6217 | -6/Waste | Spotted C-40 Crusher 6219 | -6/Waste | EMP discharged 6219 | -6/Waste | System corruption reached 10% 6220 | -6/Waste | Spotted C-40 Crusher 6223 | -6/Waste | Discovered new exit (range 14) 6229 | -6/Waste | Identified exit to Factory 6229 | -6/Waste | Entered Factory 6339 | -6/Factory | Build established: Hacker-Sprinter 6339 | -6/Factory | Discovered exit to Extension (range 15) 6422 | -6/Factory | Spotted B-75 Beast 6456 | -6/Factory | Retrieved Zion intel report: Active Terminals 6457 | -6/Factory | Zion Fire squad teleported in 6507 | -6/Factory | Retrieved Zion intel report: Depthwide Sectors/-6 6513 | -6/Factory | Retrieved Zion intel report: Prototype Stockpiles 6514 | -6/Factory | Zion Light squad teleported in 6667 | -6/Factory | Discovered exit to Factory (range 13) 6681 | -6/Factory | Lost 4 allies 6766 | -6/Factory | Discovered new exit (range 14) 6773 | -6/Factory | Identified exit to Lower Caves 6836 | -6/Factory | Mak. Hacking Suite fried by hacking feedback 6871 | -6/Factory | Retrieved Zion intel report: Depthwide Sectors/-5 6878 | -6/Factory | Retrieved Zion intel report: Component Schematics 6992 | -6/Factory | Retrieved Zion intel report: Component Schematics 7030 | -6/Factory | Core integrity fell below 50% 7049 | -6/Factory | Retrieved Zion intel report: Unaware Schematics 7108 | -6/Factory | Lost 11 parts (1p6n3u1w) 7207 | -6/Factory | Core integrity fell below 20% 7224 | -6/Factory | Retrieved Zion intel report: Unaware Analyses 7257 | -6/Factory | Entered Extension 7258 | -6/Extension | Identified exit to Cetus 7260 | -6/Extension | Loaded intel: 12 trap records 7267 | -6/Extension | Zion Light squad teleported in 7371 | -6/Extension | Zion Fire squad teleported in 7434 | -6/Extension | Rescued a captive Derelict 7526 | -6/Extension | Rescued a captive Derelict 7527 | -6/Extension | Rescued a captive Derelict 7569 | -6/Extension | Build established: Scavenger-Mutant 7621 | -6/Extension | Spotted B-75 Beast 7625 | -6/Extension | Rescued a captive Derelict 7654 | -6/Extension | Allies destroyed B-75 Beast 7662 | -6/Extension | Spotted B-75 Beast 7684 | -6/Extension | Destroyed B-75 Beast 7687 | -6/Extension | Found Zio. Weapon Casing 7692 | -6/Extension | Lost 6 allies 7733 | -6/Extension | Rescued a captive Derelict 7735 | -6/Extension | Rescued a captive Derelict 7776 | -6/Extension | Rescued a captive Derelict 7777 | -6/Extension | Rescued a captive Derelict 7924 | -6/Extension | Rescued a captive Derelict 7957 | -6/Extension | First assault squad dispatched 8034 | -6/Extension | Rescued A7 8049 | -6/Extension | Lost 7 allies 8074 | -6/Extension | Discovered exit to Factory (range 10) 8112 | -6/Extension | Entered Cetus 8112 | -6/Cetus | Accompanied by 9 allies (A7) 8117 | -6/Cetus | Acquired a Cetus Manufacturing Module code from A7 8126 | -6/Cetus | Spotted Cetus Guard 8128 | -6/Cetus | Spotted Cetus Guard 8128 | -6/Cetus | Spotted Cetus Guard 8129 | -6/Cetus | Spotted Cetus Guard 8134 | -6/Cetus | Destroyed Cetus Guard 8136 | -6/Cetus | Allies destroyed Cetus Guard 8137 | -6/Cetus | Allies destroyed Cetus Guard 8139 | -6/Cetus | Allies destroyed Cetus Guard 8167 | -6/Cetus | Lost 4 allies 8250 | -6/Cetus | Started Cetus Manufacturing Module 8273 | -6/Cetus | Escorted A7 to Cetus Mainframe 8275 | -6/Cetus | Manufactured an Enhanced Grunt 8300 | -6/Cetus | Manufactured an Enhanced Grunt 8325 | -6/Cetus | Manufactured an Enhanced Grunt 8350 | -6/Cetus | Manufactured an Enhanced Grunt 8355 | -6/Cetus | Discovered new exit (range 15) 8375 | -6/Cetus | Manufactured an Enhanced Grunt 8435 | -6/Cetus | Scared off Revision 17 8517 | -6/Cetus | Identified exit to Archives 8532 | -6/Cetus | Entered Archives 8532 | -6/Archives | Accompanied by 9 allies (A7) 8537 | -6/Archives | Received a hacking code to weaken MAIN.C 8548 | -6/Archives | Met Zhirov 8554 | -6/Archives | Reinforcements dispatched to Archives 8555 | -6/Archives | Unable to access archive contents 8574 | -6/Archives | Read partially decrypted archive contents 8577 | -6/Archives | Discovered new exit (range 15) 8592 | -6/Archives | Discovered exit to Factory (range 16) 8599 | -6/Archives | Reinforcements dispatched to Archives 8601 | -6/Archives | Zhirov warped through subspace 8619 | -6/Archives | Zhirov detonated Archives 8619 | -6/Archives | Core destroyed Last Messages --------------- 08601_ Zhirov warps through subspace. 08601_ G-50 Soldier destroyed. 08602_ Perun warps through subspace. 08603_ Slug penetrates Enhanced Grunt. 08606_ H-66 Slayer destroyed. 08607_ Chain reaction triggered in Lgt. Angular Momentum Engine. 08607_ I-36 Angel destroyed. 08608_ Chain reaction triggered in Imp. Deuterium Engine. 08608_ Y-54 Guardian destroyed. 08608_ G-50 Soldier destroyed. 08609_ Y-54 Guardian destroyed. 08611_ Enhanced Grunt destroyed. 08619_ Archive Hub disabled. 08619_ O-32 Director destroyed. 08619_ Zio. Glidesys I destroyed. 08619_ O-32 Director destroyed. 08619_ Myomer Leg destroyed. 08619_ Lgt. Angular Momentum Engine destroyed. Map ----- +----------------------------------------------------+ | ???????????##########????????????????? | | ???????????"" # #????????????????? | | ???????????"" # < ###??????????????? | | ???????????"" # ###??????????????? | | ???????????"" # * "##??????????????? | | ??????????""" [ "##??????????????? | | ???????????"" [==="##??????????????? | | ???????????"" !%*%=#???????????????? | | ??????????"""" =%=%*"#???????????????? | | ???????##""""" !!%[% #???????????????? | | ???????####"#"#"=*%!##???????????????? | | ???????##""""" %[%!#####????????????? | | ???????##"""V"""!% [## ###???????????? | | ??????###""" " #%* ### #### ????????? | | #########"" ""]*] #####???????? | | ######## # #???????? | | ""??????? | | #""" """""##? | | " """"""""##? | | ######## """"""##? | | #"""" o ##? | | ?"""" ##? | | """"""" ##? | | """#"V +######? | | """"""" ##? | | ""??"""" @ < ##? | | ""??"""" ##? | | ????#### #########? | | ????##### #########? | | ??????### ##???????? | | ???????## ##???????? | | ???????## ###???????? | | ???????## ###???????? | | ???????## ? # ##????????? | | ???????## ??? ###????????? | | ???????## ??? ###????????? | | ????????????? ##??????????? | | ???????????????? ##??????????? | | ?????????????????? ##???????????? | | ???????????????????? ###???????????? | | ???????????????????? ##????????????? | | ?????????????????????????????????????? | | ?????????????????????????????????????? | | ?????????????????????????????????????? | | ?????????????????????????????????????? | | | | | | | | | | | +----------------------------------------------------+ Best States ------------- Heat Dissipation 64 Coolant Potential 50 Energy Generation 27 Energy Capacity 265 Matter Stores 300 Matter Capacity 300 Sight Range 16 Robot Scan Range 16 Terrain Scan Range 16 Terrain Scan Density 85 Armor Coverage 400 Resistance: KI 10 Propulsion Shielding 33 Utility Shielding 66 Weapon Shielding 100 Evasion (%) 65 Targeting Accuracy 12 Melee Accuracy 8 Offensive Hacking 21 Authchip Count 6 Item Schematics ----------------- Surge Thruster | -7/Factory | Scanalyzed Remote Force Field | -7/Factory | Hacked Field Propulsion Drive | -7/Factory | Scanalyzed Flak Gun | -7/Zion | Archive Focal Shield | -7/Zion | Archive Core Analyzer | -7/Zion | Archive Hpw. Shock Rifle | -7/Zion | Archive Imp. Cooling System | -7/Zion | Archive Thermic Laser | -7/Zion | Archive Gauss Cannon | -7/Zion | Archive Imp. Coolant Injector | -7/Zion | Archive Adv. Recoil Stabilizer | -7/Zion | Archive Arm. Leg | -7/Zion | Archive Imp. Hardlight Generator | -7/Zion | Archive Imp. Salvage Targeting Computer | -7/Zion | Archive Armor Integrity Analyzer | -7/Zion | Archive Hvy. Pick | -7/Zion | Archive Imp. KE Penetrator | -7/Zion | Archive Powered Hammer | -6/Factory | Z-intel Imp. Medium Treads | -6/Factory | Z-intel Matter Compressor | -6/Factory | Z-intel Arm. Treads | -6/Factory | Z-intel IFF Parser | -6/Factory | Z-intel Plasma Rifle | -6/Factory | Z-intel Hvy. Plasma Cannon | -6/Factory | Z-intel Arm. Huge Wheel | -6/Factory | Z-intel Hvy. Ion Cannon | -6/Factory | Z-intel Cmb. Airjet | -6/Factory | Z-intel Proton Cannon | -6/Factory | Z-intel Enh. Optical Array | -6/Factory | Z-intel ECM Suite | -6/Factory | Z-intel Sml. Matter Pod | -6/Factory | Z-intel Datajack | -6/Factory | Z-intel Nuclear Pulse Thruster | -6/Factory | Z-intel Com. Ion Cannon | -6/Factory | Z-intel Adv. Beam Rifle | -6/Factory | Z-intel Prc. Grenade Launcher | -6/Factory | Z-intel Imp. Heavy Machine Gun | -6/Factory | Z-intel Cld. VTOL Module | -6/Factory | Z-intel F-cell Engine | -6/Factory | Z-intel Imp. Heavy Laser | -6/Factory | Z-intel Force Rifle | -6/Factory | Z-intel Prc. Assault Rifle | -6/Factory | Z-intel Gui. EMP Blaster | -6/Factory | Z-intel Mni. Assault Cannon | -6/Factory | Z-intel Multireflex Exoskeleton | -6/Factory | Z-intel Hvy. Deuterium Engine | -6/Factory | Z-intel Aerolev Unit | -6/Factory | Z-intel Imp. Spread Laser | -6/Factory | Z-intel Cld. Plasma Cannon | -6/Factory | Z-intel Imp. Lightning Gun | -6/Factory | Z-intel Rocket Array | -6/Factory | Z-intel Cld. Deuterium Engine | -6/Factory | Z-intel Cld. Aerolev Unit | -6/Factory | Z-intel Prc. Shock Rifle | -6/Factory | Z-intel Scythe | -6/Factory | Z-intel Adv. Terrain Scanner | -6/Factory | Z-intel Imp. Carbon-fiber Leg | -6/Factory | Z-intel Terrain Scan Processor | -6/Factory | Z-intel Coolant Injector | -6/Factory | Z-intel Lgt. Fission Core | -6/Factory | Z-intel Reaction Control System | -6/Factory | Z-intel Field Laser | -6/Factory | Z-intel Hvy. Machine Gun | -6/Factory | Z-intel Spear | -6/Factory | Z-intel Trap Scanner | -6/Factory | Z-intel Hcp. Storage Unit | -6/Factory | Z-intel Imp. Gravmag System | -6/Factory | Z-intel Launcher Guidance Computer | -6/Factory | Z-intel Fission Core | -6/Factory | Z-intel Imp. System Shield | -6/Factory | Z-intel Imp. Remote Shield | -6/Factory | Scanalyzed Stasis Canceller | -6/Factory | Scanalyzed Imp. System Restoration Module | -6/Factory | Scanalyzed Shock Absorption System | -6/Factory | Z-intel Gauss Rifle | -6/Factory | Z-intel Phase Cannon | -6/Factory | Z-intel Drone Bay | -6/Factory | Z-intel Weapon Cycler | -6/Factory | Z-intel Lgt. Angular Momentum Engine | -6/Factory | Z-intel Com. Wheel | -6/Factory | Z-intel Adv. ECM Suite | -6/Factory | Z-intel Huge Storage Unit | -6/Factory | Z-intel Cloaking Device | -6/Factory | Z-intel Shield Generator | -6/Factory | Z-intel Magnetic Acceleration Cannon | -6/Factory | Z-intel Mace | -6/Factory | Z-intel Robot Schematics ------------------ Y-45 Defender | -7/Factory | Hacked X-57 Shotgunner | -7/Factory | Downloaded L-31 Rogue | -7/Zion | Archive R-06 Scavenger | -7/Zion | Archive O-24 Administrator | -7/Zion | Archive E-15 Imp | -6/Factory | Z-intel G-50 Soldier | -6/Factory | Z-intel D-53 Grenadier | -6/Factory | Z-intel A-15 Conveyor | -6/Factory | Z-intel Y-54 Guardian | -6/Factory | Z-intel Fabricated ------------ X-57 Shotgunner | x2 | -7/Factory | Authchip X-57 Shotgunner | x2 | -7/Factory | Authchip G-47 Trooper | x3 | -7/Factory | Preloaded Field Propulsion Drive | x2 | -6/Factory | Authchip Field Propulsion Drive | x2 | -6/Factory | Authchip Field Propulsion Drive | x2 | -6/Factory | Authchip Repaired ---------- Field Propulsion Drive | 3% | -7/Factory Alien Tech Used ----------------- None Achievements -------------- None Challenges ------------ None Game ------ Seed ArcPowerMapper Manual? 0 Play Time 02:48:22 Cumulative 472.8 hours Start 2025.08.17 @ 13:35:39 End 2025.08.17 @ 19:27:50 Sessions 5 Manual Loads 0 Difficulty Rogue Special Mode None Game No. 207 Rogue 207 Adventurer 0 Explorer 0 Win Type - Total 31 Types 13/2/5/2/5/1/0/2/0/1 Lore% 95 Gallery% 86 Achievement% 79 Wizard Run 0 Options --------- Layout 1 ASCII 0 Keyboard 0 Movement Numpad Keybinds 0 Fullscreen 1 Font 24/Smallcaps Map View 50x35 Zoom Use 0% Tactical HUD 1 Map Filters NONE Filters NONE Steam 1 RUN: 1ff1e0c0-f455-4672-94ad-057fc040fd91